[Event "Early-Titled-Tuesday-Blitz-August-29-2023"]
[Site "Chess.com"]
[Date "2023.08.29"]
[Round "5"]
[White "hitaman"]
[Black "kirillshevchenko"]
[Result "1-0"]
[WhiteElo "2724"]
[BlackElo "2960"]
[TimeControl "180+1"]
[EndTime "8:56:00 PDT"]
[Termination "hitaman won on time"]

1. e4 {[%clk 0:03:00.9]} 1... e5 {[%clk 0:02:57.6]} 2. Nf3 {[%clk 0:03:00.8]}
2... Nc6 {[%clk 0:02:58.3]} 3. Nc3 {[%clk 0:03:01.2]} 3... Nf6 {[%clk
0:02:56.8]} 4. d4 {[%clk 0:03:01.6]} 4... exd4 {[%clk 0:02:56.8]} 5. Nxd4 {[%clk
0:03:02.5]} 5... Nxe4 {[%clk 0:02:57.5]} 6. Nxe4 {[%clk 0:02:51.7]} 6... Qe7
{[%clk 0:02:55.5]} 7. f3 {[%clk 0:02:50.1]} 7... d5 {[%clk 0:02:55.2]} 8. Bb5
{[%clk 0:02:24.2]} 8... Bd7 {[%clk 0:02:54.7]} 9. O-O {[%clk 0:02:19.2]} 9...
dxe4 {[%clk 0:02:53.8]} 10. Bxc6 {[%clk 0:02:04.7]} 10... bxc6 {[%clk
0:02:52.7]} 11. Re1 {[%clk 0:02:03.9]} 11... O-O-O {[%clk 0:02:51.7]} 12. Qe2
{[%clk 0:01:58.8]} 12... Qb4 {[%clk 0:02:45.8]} 13. Qa6+ {[%clk 0:01:53.6]}
13... Qb7 {[%clk 0:02:44.7]} 14. Qxb7+ {[%clk 0:01:52.6]} 14... Kxb7 {[%clk
0:02:45.6]} 15. Rxe4 {[%clk 0:01:52.2]} 15... c5 {[%clk 0:02:28.2]} 16. Nb3
{[%clk 0:01:45.2]} 16... Bf5 {[%clk 0:02:02]} 17. Rc4 {[%clk 0:01:24.1]} 17...
Rd1+ {[%clk 0:01:53]} 18. Kf2 {[%clk 0:01:24.2]} 18... Be7 {[%clk 0:01:21.3]}
19. Nxc5+ {[%clk 0:01:22.2]} 19... Ka8 {[%clk 0:00:42]} 20. Nb3 {[%clk
0:01:22.2]} 20... Be6 {[%clk 0:00:39.9]} 21. Rxc7 {[%clk 0:01:11.8]} 21... Bh4+
{[%clk 0:00:19.8]} 22. g3 {[%clk 0:01:11.5]} 22... Bf6 {[%clk 0:00:14.1]} 23.
Rxa7+ {[%clk 0:01:04.8]} 23... Kxa7 {[%clk 0:00:15]} 24. Be3+ {[%clk 0:01:04.9]}
24... Ka8 {[%clk 0:00:10.8]} 25. Rxd1 {[%clk 0:01:05]} 25... Bxb2 {[%clk
0:00:11.7]} 26. Bd4 {[%clk 0:00:56]} 26... Rd8 {[%clk 0:00:08.9]} 27. Ke3 {[%clk
0:00:54]} 27... Ba3 {[%clk 0:00:08.1]} 28. Rb1 {[%clk 0:00:48.2]} 28... f6
{[%clk 0:00:07.9]} 29. Bc5 {[%clk 0:00:47.4]} 29... Bxb3 {[%clk 0:00:07.1]} 30.
Bxa3 {[%clk 0:00:44.9]} 30... Bxc2 {[%clk 0:00:07.5]} 31. Rb2 {[%clk 0:00:43.1]}
31... Bg6 {[%clk 0:00:06]} 32. Bc5 {[%clk 0:00:41.8]} 32... Rd3+ {[%clk
0:00:05.2]} 33. Ke2 {[%clk 0:00:42]} 33... Rd5 {[%clk 0:00:05.9]} 34. Bf8 {[%clk
0:00:40.1]} 34... Rd7 {[%clk 0:00:05.6]} 35. Rd2 {[%clk 0:00:39.6]} 35... Rf7
{[%clk 0:00:03.8]} 36. Rd8+ {[%clk 0:00:38.4]} 36... Kb7 {[%clk 0:00:04.3]} 37.
a3 {[%clk 0:00:37.2]} 37... Kc6 {[%clk 0:00:04.5]} 38. Ke3 {[%clk 0:00:37.4]}
38... Ra7 {[%clk 0:00:04.6]} 39. Bb4 {[%clk 0:00:36.3]} 39... Bb1 {[%clk
0:00:03]} 40. Rg8 {[%clk 0:00:35.4]} 40... g6 {[%clk 0:00:03.2]} 41. Rf8 {[%clk
0:00:35.6]} 41... f5 {[%clk 0:00:03.7]} 42. Kf4 {[%clk 0:00:35.9]} 42... Kd5
{[%clk 0:00:04.1]} 43. Rd8+ {[%clk 0:00:35.3]} 43... Ke6 {[%clk 0:00:04.2]} 44.
Kg5 {[%clk 0:00:34.2]} 44... Rd7 {[%clk 0:00:04.3]} 45. Rh8 {[%clk 0:00:23.8]}
45... Bd3 {[%clk 0:00:02.8]} 46. Kh6 {[%clk 0:00:23.7]} 46... Be2 {[%clk
0:00:03.4]} 47. f4 {[%clk 0:00:23.8]} 47... Kd5 {[%clk 0:00:03.6]} 48. Rxh7
{[%clk 0:00:19.1]} 48... Rxh7+ {[%clk 0:00:04.3]} 49. Kxh7 {[%clk 0:00:20]}
49... Bh5 {[%clk 0:00:04.3]} 50. Kh6 {[%clk 0:00:20.3]} 50... Ke6 {[%clk
0:00:04.5]} 51. Kg7 {[%clk 0:00:18.2]} 51... Kd5 {[%clk 0:00:03.2]} 52. h3
{[%clk 0:00:18.2]} 52... Ke6 {[%clk 0:00:02.2]} 53. Ba5 {[%clk 0:00:14.9]} 53...
Kd5 {[%clk 0:00:02.4]} 54. Kf6 {[%clk 0:00:14.4]} 54... Ke4 {[%clk 0:00:01.8]}
55. Kg5 {[%clk 0:00:14.7]} 55... Kf3 {[%clk 0:00:02.5]} 56. Be1 {[%clk
0:00:11.9]} 56... Ke2 {[%clk 0:00:02.6]} 57. g4 {[%clk 0:00:11.7]} 57... fxg4
{[%clk 0:00:01.6]} 58. hxg4 {[%clk 0:00:12]} 1-0

[Event "Early-Titled-Tuesday-Blitz-August-29-2023"]
[Site "Chess.com"]
[Date "2023.08.29"]
[Round "5"]
[White "Cayse"]
[Black "Kildepiotr"]
[Result "0-1"]
[WhiteElo "2886"]
[BlackElo "2667"]
[TimeControl "180+1"]
[EndTime "8:56:03 PDT"]
[Termination "Kildepiotr won on time"]

1. e4 {[%clk 0:03:00.9]} 1... g6 {[%clk 0:02:53]} 2. d4 {[%clk 0:03:00.3]} 2...
Bg7 {[%clk 0:02:51.4]} 3. Nc3 {[%clk 0:03:00.8]} 3... c6 {[%clk 0:02:52]} 4. f4
{[%clk 0:03:00.4]} 4... d5 {[%clk 0:02:50]} 5. e5 {[%clk 0:03:00.2]} 5... Nh6
{[%clk 0:02:50.7]} 6. Nf3 {[%clk 0:02:58.2]} 6... Bg4 {[%clk 0:02:50.7]} 7. Bd3
{[%clk 0:02:58.1]} 7... Nf5 {[%clk 0:02:50.6]} 8. Bxf5 {[%clk 0:02:43.3]} 8...
gxf5 {[%clk 0:02:51.5]} 9. Be3 {[%clk 0:02:41.6]} 9... h5 {[%clk 0:02:48.7]} 10.
Qd3 {[%clk 0:02:38.4]} 10... Bxf3 {[%clk 0:02:47.8]} 11. gxf3 {[%clk 0:02:38.1]}
11... e6 {[%clk 0:02:48.2]} 12. O-O-O {[%clk 0:02:38]} 12... Bh6 {[%clk
0:02:46.5]} 13. Rhg1 {[%clk 0:02:31.1]} 13... Qh4 {[%clk 0:02:40.1]} 14. Ne2
{[%clk 0:02:30.2]} 14... Nd7 {[%clk 0:02:38.9]} 15. Kb1 {[%clk 0:02:28.3]} 15...
O-O-O {[%clk 0:02:37.3]} 16. Qa3 {[%clk 0:02:27.2]} 16... Kb8 {[%clk 0:02:35.5]}
17. Rg2 {[%clk 0:01:57.4]} 17... Bf8 {[%clk 0:02:32.8]} 18. Qd3 {[%clk
0:01:55.3]} 18... Nb6 {[%clk 0:02:31.6]} 19. Rdg1 {[%clk 0:01:53.6]} 19... Qe7
{[%clk 0:02:25.8]} 20. Rg5 {[%clk 0:01:48.5]} 20... h4 {[%clk 0:02:23.7]} 21.
Bc1 {[%clk 0:01:47.3]} 21... Qc7 {[%clk 0:02:16.2]} 22. b3 {[%clk 0:01:42.7]}
22... c5 {[%clk 0:01:52.9]} 23. dxc5 {[%clk 0:01:40]} 23... Bxc5 {[%clk
0:01:53.8]} 24. Nd4 {[%clk 0:01:39.9]} 24... a6 {[%clk 0:01:49]} 25. Rg7 {[%clk
0:01:38.5]} 25... Rd7 {[%clk 0:01:46.1]} 26. Rg8+ {[%clk 0:01:26.5]} 26... Rxg8
{[%clk 0:01:36.4]} 27. Rxg8+ {[%clk 0:01:27.4]} 27... Ka7 {[%clk 0:01:35.6]} 28.
Bd2 {[%clk 0:01:25]} 28... Nc4 {[%clk 0:01:19.1]} 29. Bc3 {[%clk 0:01:07.5]}
29... Qb6 {[%clk 0:01:18]} 30. Ka1 {[%clk 0:01:01.4]} 30... Na3 {[%clk
0:01:14.8]} 31. Rc8 {[%clk 0:00:45.1]} 31... Rc7 {[%clk 0:01:10.1]} 32. Rxc7
{[%clk 0:00:44.1]} 32... Qxc7 {[%clk 0:01:11]} 33. Kb2 {[%clk 0:00:44.3]} 33...
Qb6 {[%clk 0:01:02.5]} 34. Kc1 {[%clk 0:00:43.9]} 34... h3 {[%clk 0:00:55.4]}
35. Bb2 {[%clk 0:00:32.4]} 35... Nb5 {[%clk 0:00:52.7]} 36. c3 {[%clk
0:00:26.8]} 36... Bxd4 {[%clk 0:00:46.9]} 37. cxd4 {[%clk 0:00:27.7]} 37... Qa5
{[%clk 0:00:47.1]} 38. a4 {[%clk 0:00:22.6]} 38... Qe1+ {[%clk 0:00:39.6]} 39.
Qd1 {[%clk 0:00:22.3]} 39... Qe3+ {[%clk 0:00:39.8]} 40. Qd2 {[%clk 0:00:22.2]}
40... Qg1+ {[%clk 0:00:39.8]} 41. Kc2 {[%clk 0:00:21.5]} 41... Nc7 {[%clk
0:00:35.3]} 42. Ba3 {[%clk 0:00:20.4]} 42... b6 {[%clk 0:00:28.8]} 43. Be7
{[%clk 0:00:13.5]} 43... Kb7 {[%clk 0:00:25.3]} 44. Bh4 {[%clk 0:00:10.3]} 44...
a5 {[%clk 0:00:23]} 45. Be7 {[%clk 0:00:05.3]} 45... Na6 {[%clk 0:00:21.6]} 46.
Bd6 {[%clk 0:00:05.4]} 46... Qa1 {[%clk 0:00:19.5]} 47. Kd3 {[%clk 0:00:05.2]}
47... Qb1+ {[%clk 0:00:18.7]} 48. Qc2 {[%clk 0:00:05.3]} 48... Qf1+ {[%clk
0:00:16.1]} 49. Ke3 {[%clk 0:00:05.3]} 49... Qe1+ {[%clk 0:00:11.5]} 50. Qe2
{[%clk 0:00:05.3]} 50... Qg1+ {[%clk 0:00:09.8]} 51. Kd3 {[%clk 0:00:05.4]}
51... Qb1+ {[%clk 0:00:07]} 52. Kc3 {[%clk 0:00:05.7]} 52... Qa1+ {[%clk
0:00:05.4]} 53. Qb2 {[%clk 0:00:05.8]} 53... Qe1+ {[%clk 0:00:04.5]} 54. Qd2
{[%clk 0:00:05.8]} 54... Qa1+ {[%clk 0:00:04.3]} 55. Kd3 {[%clk 0:00:02.8]}
55... Qb1+ {[%clk 0:00:04.6]} 56. Qc2 {[%clk 0:00:01.8]} 56... Qf1+ {[%clk
0:00:04.5]} 0-1

[Event "Early-Titled-Tuesday-Blitz-August-29-2023"]
[Site "Chess.com"]
[Date "2023.08.29"]
[Round "5"]
[White "viktorgen2021"]
[Black "Kubas1010"]
[Result "0-1"]
[WhiteElo "2452"]
[BlackElo "2669"]
[TimeControl "180+1"]
[EndTime "8:56:03 PDT"]
[Termination "Kubas1010 won by resignation"]

1. d4 {[%clk 0:02:53.2]} 1... d5 {[%clk 0:02:58.7]} 2. Nf3 {[%clk 0:02:52.4]}
2... Nf6 {[%clk 0:02:58.3]} 3. c4 {[%clk 0:02:47.7]} 3... e6 {[%clk 0:02:57.9]}
4. g3 {[%clk 0:02:47.4]} 4... Be7 {[%clk 0:02:52.4]} 5. Bg2 {[%clk 0:02:46.6]}
5... O-O {[%clk 0:02:53.1]} 6. O-O {[%clk 0:02:47.1]} 6... dxc4 {[%clk 0:02:53]}
7. Qc2 {[%clk 0:02:44.7]} 7... a6 {[%clk 0:02:53.1]} 8. a4 {[%clk 0:02:44.1]}
8... Bd7 {[%clk 0:02:49.6]} 9. Qxc4 {[%clk 0:02:43.9]} 9... Bc6 {[%clk
0:02:49.7]} 10. Bg5 {[%clk 0:02:42.8]} 10... a5 {[%clk 0:02:47.8]} 11. Rd1
{[%clk 0:02:41.1]} 11... Na6 {[%clk 0:02:47.5]} 12. Bxf6 {[%clk 0:02:39.5]}
12... Bxf6 {[%clk 0:02:47.1]} 13. Nc3 {[%clk 0:02:40.1]} 13... Bxf3 {[%clk
0:02:43.3]} 14. Bxf3 {[%clk 0:02:38.9]} 14... c6 {[%clk 0:02:43.7]} 15. e4
{[%clk 0:02:37.9]} 15... Nb4 {[%clk 0:02:43.2]} 16. d5 {[%clk 0:02:28.8]} 16...
cxd5 {[%clk 0:02:37.7]} 17. exd5 {[%clk 0:02:25.6]} 17... Rc8 {[%clk 0:02:24]}
18. Qb5 {[%clk 0:02:19.9]} 18... exd5 {[%clk 0:02:17.7]} 19. Nxd5 {[%clk
0:01:52.8]} 19... Nc2 {[%clk 0:02:09.6]} 20. Bg4 {[%clk 0:01:17.5]} 20... Nd4
{[%clk 0:01:55.2]} 21. Qd7 {[%clk 0:00:37.7]} 21... Qxd7 {[%clk 0:01:42.7]} 22.
Nxf6+ {[%clk 0:00:35.4]} 22... gxf6 {[%clk 0:01:35.2]} 23. Bxd7 {[%clk
0:00:36.3]} 23... Rc4 {[%clk 0:01:32.5]} 24. Kf1 {[%clk 0:00:21.6]} 24... Rd8
{[%clk 0:01:31]} 25. Bg4 {[%clk 0:00:12.7]} 25... Rd6 {[%clk 0:01:20.3]} 26. Rd2
{[%clk 0:00:10.4]} 26... f5 {[%clk 0:01:18.4]} 27. Be2 {[%clk 0:00:10]} 27...
Rb4 {[%clk 0:01:17.2]} 28. Rad1 {[%clk 0:00:10.5]} 28... Rxa4 {[%clk 0:01:15.6]}
29. b3 {[%clk 0:00:07.6]} 29... Rb4 {[%clk 0:01:15.5]} 30. Bc4 {[%clk
0:00:07.9]} 30... b5 {[%clk 0:00:54.3]} 31. Bxb5 {[%clk 0:00:05.8]} 31... Rxb3
{[%clk 0:00:43.9]} 32. Rxd4 {[%clk 0:00:04]} 32... Rxd4 {[%clk 0:00:43.7]} 33.
Rxd4 {[%clk 0:00:04.9]} 33... Rxb5 {[%clk 0:00:43.9]} 34. Ke2 {[%clk 0:00:04.6]}
34... Kg7 {[%clk 0:00:43.7]} 35. Ra4 {[%clk 0:00:04.2]} 35... Kf6 {[%clk
0:00:42.3]} 36. f4 {[%clk 0:00:04.3]} 36... Ke6 {[%clk 0:00:41.2]} 37. Ke3
{[%clk 0:00:04.8]} 37... Kd5 {[%clk 0:00:41]} 38. h3 {[%clk 0:00:04.9]} 38...
Kc5 {[%clk 0:00:40]} 39. g4 {[%clk 0:00:05]} 39... Rb3+ {[%clk 0:00:40.2]} 40.
Kd2 {[%clk 0:00:03]} 40... Kb5 {[%clk 0:00:40]} 41. Rd4 {[%clk 0:00:02.1]} 41...
Rxh3 {[%clk 0:00:38.6]} 42. Rd5+ {[%clk 0:00:02.4]} 42... Kb4 {[%clk 0:00:36.7]}
43. Rxf5 {[%clk 0:00:03.3]} 43... a4 {[%clk 0:00:36.9]} 44. Rxf7 {[%clk
0:00:03.6]} 44... a3 {[%clk 0:00:36.9]} 45. Rb7+ {[%clk 0:00:04.2]} 45... Kc4
{[%clk 0:00:37]} 46. Rc7+ {[%clk 0:00:04.4]} 46... Kd4 {[%clk 0:00:36.5]} 47. f5
{[%clk 0:00:04]} 47... a2 {[%clk 0:00:33.9]} 48. Ra7 {[%clk 0:00:03.9]} 48...
Rh2+ {[%clk 0:00:33.6]} 49. Kc1 {[%clk 0:00:02.5]} 49... Ke5 {[%clk 0:00:19.9]}
50. Ra5+ {[%clk 0:00:01.7]} 50... Kf6 {[%clk 0:00:19.7]} 51. Ra6+ {[%clk
0:00:02]} 51... Kg5 {[%clk 0:00:19.4]} 52. Ra4 {[%clk 0:00:01.5]} 52... h6
{[%clk 0:00:14.8]} 53. Ra5 {[%clk 0:00:01.3]} 53... Rf2 {[%clk 0:00:09.6]} 54.
Ra6 {[%clk 0:00:01.1]} 54... Kxg4 {[%clk 0:00:09.3]} 55. f6 {[%clk 0:00:01.3]}
55... h5 {[%clk 0:00:07.9]} 56. f7 {[%clk 0:00:01.4]} 56... Rxf7 {[%clk
0:00:07.2]} 57. Rxa2 {[%clk 0:00:02]} 57... Rf1+ {[%clk 0:00:07.8]} 58. Kb2
{[%clk 0:00:01.4]} 58... Rf2+ {[%clk 0:00:08.7]} 0-1

[Event "Early-Titled-Tuesday-Blitz-August-29-2023"]
[Site "Chess.com"]
[Date "2023.08.29"]
[Round "5"]
[White "starworld123"]
[Black "Pax-Pramana"]
[Result "1-0"]
[WhiteElo "2781"]
[BlackElo "2478"]
[TimeControl "180+1"]
[EndTime "8:56:07 PDT"]
[Termination "starworld123 won by resignation"]

1. d4 {[%clk 0:03:00.9]} 1... Nf6 {[%clk 0:02:59.1]} 2. Bg5 {[%clk 0:02:56]}
2... Ne4 {[%clk 0:02:56.5]} 3. Bf4 {[%clk 0:02:54.1]} 3... c5 {[%clk 0:02:54]}
4. f3 {[%clk 0:02:52.7]} 4... Nf6 {[%clk 0:02:48.1]} 5. dxc5 {[%clk 0:02:52.8]}
5... Na6 {[%clk 0:02:42.9]} 6. e4 {[%clk 0:02:42.6]} 6... e6 {[%clk 0:02:40.9]}
7. Bxa6 {[%clk 0:02:38.8]} 7... bxa6 {[%clk 0:02:33.2]} 8. Bd6 {[%clk 0:02:39]}
8... a5 {[%clk 0:02:20.9]} 9. Nc3 {[%clk 0:02:31.3]} 9... Ba6 {[%clk 0:02:17.5]}
10. Qd4 {[%clk 0:02:30.1]} 10... Rb8 {[%clk 0:02:09.6]} 11. Bxb8 {[%clk
0:02:28]} 11... Qxb8 {[%clk 0:02:10.5]} 12. O-O-O {[%clk 0:02:26.8]} 12... Qc7
{[%clk 0:02:02.9]} 13. Na4 {[%clk 0:02:19.6]} 13... Be7 {[%clk 0:01:47.4]} 14.
Kb1 {[%clk 0:02:09.6]} 14... O-O {[%clk 0:01:46.3]} 15. c4 {[%clk 0:02:10.3]}
15... Rb8 {[%clk 0:01:46.2]} 16. b3 {[%clk 0:02:05.5]} 16... Rb4 {[%clk
0:01:46.3]} 17. e5 {[%clk 0:01:54.8]} 17... Nd5 {[%clk 0:01:20.5]} 18. Nc3
{[%clk 0:01:10.8]} 18... Bxc4 {[%clk 0:01:19]} 19. Nxd5 {[%clk 0:01:10.7]} 19...
Bxd5 {[%clk 0:01:09.3]} 20. Qc3 {[%clk 0:01:08.2]} 20... Bxc5 {[%clk 0:00:44.1]}
21. Rc1 {[%clk 0:01:07.7]} 21... Bc4 {[%clk 0:00:32.2]} 22. Ne2 {[%clk
0:00:59.3]} 22... Qb6 {[%clk 0:00:22.4]} 23. Rc2 {[%clk 0:00:48.4]} 23... a4
{[%clk 0:00:15.1]} 24. Nc1 {[%clk 0:00:45.2]} 24... Be3 {[%clk 0:00:12.5]} 25.
Qxb4 {[%clk 0:00:09.8]} 25... Qxb4 {[%clk 0:00:11.3]} 26. Rxc4 {[%clk
0:00:10.5]} 26... Qb7 {[%clk 0:00:09.9]} 27. Rxa4 {[%clk 0:00:11.1]} 27... g5
{[%clk 0:00:07.9]} 28. Nd3 {[%clk 0:00:09.2]} 28... Qb5 {[%clk 0:00:05.6]} 29.
Rd1 {[%clk 0:00:08.6]} 29... a5 {[%clk 0:00:06.2]} 30. Re4 {[%clk 0:00:08.2]}
30... Bb6 {[%clk 0:00:05.9]} 31. Rc4 {[%clk 0:00:08.5]} 31... Kg7 {[%clk
0:00:05.8]} 32. Kc2 {[%clk 0:00:09.1]} 32... Bd8 {[%clk 0:00:05.5]} 33. g3
{[%clk 0:00:09.6]} 33... Be7 {[%clk 0:00:06.1]} 34. f4 {[%clk 0:00:10.3]} 34...
h6 {[%clk 0:00:06.8]} 35. Rf1 {[%clk 0:00:10]} 35... Qd5 {[%clk 0:00:06.7]} 36.
f5 {[%clk 0:00:07.5]} 36... exf5 {[%clk 0:00:06.3]} 37. Rxf5 {[%clk 0:00:08.4]}
37... Qg2+ {[%clk 0:00:06.1]} 38. Rf2 {[%clk 0:00:09.1]} 38... Qg1 {[%clk
0:00:06.6]} 39. Re4 {[%clk 0:00:08.5]} 39... Bb4 {[%clk 0:00:05.8]} 40. Ree2
{[%clk 0:00:05.7]} 40... Ba3 {[%clk 0:00:06]} 41. Re1 {[%clk 0:00:05.2]} 41...
Qxf2+ {[%clk 0:00:04.3]} 42. Nxf2 {[%clk 0:00:04.8]} 42... Bb4 {[%clk
0:00:05.2]} 43. Rf1 {[%clk 0:00:04.7]} 43... d5 {[%clk 0:00:04.3]} 44. Nd3
{[%clk 0:00:05.6]} 44... Be7 {[%clk 0:00:03]} 45. Nc1 {[%clk 0:00:05.2]} 45...
Kg6 {[%clk 0:00:03.6]} 46. Ne2 {[%clk 0:00:06.1]} 46... h5 {[%clk 0:00:04.3]}
47. Nd4 {[%clk 0:00:06.5]} 47... Bc5 {[%clk 0:00:05]} 48. Nc6 {[%clk 0:00:07.4]}
48... Bb6 {[%clk 0:00:05.3]} 49. Ne7+ {[%clk 0:00:07.9]} 49... Kg7 {[%clk
0:00:05.1]} 50. Nxd5 {[%clk 0:00:08.8]} 50... Bd8 {[%clk 0:00:05.4]} 51. Rf5
{[%clk 0:00:09.2]} 51... Kg6 {[%clk 0:00:06.3]} 52. Rf2 {[%clk 0:00:09.3]} 52...
g4 {[%clk 0:00:06.5]} 53. Re2 {[%clk 0:00:10.2]} 53... Kg5 {[%clk 0:00:06.2]}
54. Nf4 {[%clk 0:00:11.1]} 54... Be7 {[%clk 0:00:05.8]} 55. e6 {[%clk 0:00:12]}
55... f5 {[%clk 0:00:05.8]} 56. Nd5 {[%clk 0:00:12.9]} 56... Bd6 {[%clk
0:00:05.9]} 57. e7 {[%clk 0:00:13.8]} 57... Bxe7 {[%clk 0:00:06.8]} 58. Rxe7
{[%clk 0:00:14.7]} 58... h4 {[%clk 0:00:07]} 59. Rg7+ {[%clk 0:00:15.1]} 59...
Kh6 {[%clk 0:00:07.4]} 60. Rg8 {[%clk 0:00:15.8]} 60... h3 {[%clk 0:00:07.9]}
61. Kd3 {[%clk 0:00:15.6]} 61... Kh7 {[%clk 0:00:08.1]} 62. Rg5 {[%clk
0:00:15.8]} 62... f4 {[%clk 0:00:07.4]} 63. Nxf4 {[%clk 0:00:15.8]} 1-0

[Event "Early-Titled-Tuesday-Blitz-August-29-2023"]
[Site "Chess.com"]
[Date "2023.08.29"]
[Round "5"]
[White "Rutricks"]
[Black "GMForgacs"]
[Result "1-0"]
[WhiteElo "2614"]
[BlackElo "2433"]
[TimeControl "180+1"]
[EndTime "8:56:07 PDT"]
[Termination "Rutricks won by resignation"]

1. Nf3 {[%clk 0:02:56.8]} 1... Nf6 {[%clk 0:03:00]} 2. b3 {[%clk 0:02:57.4]}
2... g6 {[%clk 0:03:00.7]} 3. Bb2 {[%clk 0:02:58.1]} 3... Bg7 {[%clk 0:03:01.5]}
4. e3 {[%clk 0:02:58.9]} 4... O-O {[%clk 0:03:02.2]} 5. Be2 {[%clk 0:02:59.6]}
5... d5 {[%clk 0:03:02.7]} 6. O-O {[%clk 0:03:00.1]} 6... c5 {[%clk 0:03:03.2]}
7. c4 {[%clk 0:02:59.7]} 7... Nc6 {[%clk 0:03:00.7]} 8. h3 {[%clk 0:03:00.3]}
8... Bf5 {[%clk 0:02:51.1]} 9. Re1 {[%clk 0:02:58.7]} 9... e6 {[%clk 0:02:49.2]}
10. Nc3 {[%clk 0:02:56.7]} 10... h5 {[%clk 0:02:47]} 11. cxd5 {[%clk 0:02:56.1]}
11... exd5 {[%clk 0:02:45.6]} 12. d4 {[%clk 0:02:55.7]} 12... cxd4 {[%clk
0:02:44.8]} 13. Nxd4 {[%clk 0:02:56.6]} 13... Nxd4 {[%clk 0:02:44.5]} 14. exd4
{[%clk 0:02:40.2]} 14... Re8 {[%clk 0:02:44]} 15. Bf3 {[%clk 0:02:39.5]} 15...
Ne4 {[%clk 0:02:40.3]} 16. Ne2 {[%clk 0:02:26.7]} 16... Qh4 {[%clk 0:02:27.1]}
17. Rf1 {[%clk 0:02:17.9]} 17... Rad8 {[%clk 0:02:08.3]} 18. Bxe4 {[%clk
0:02:10.6]} 18... dxe4 {[%clk 0:02:00]} 19. Qd2 {[%clk 0:02:10.9]} 19... Kh7
{[%clk 0:01:56.5]} 20. Ng3 {[%clk 0:02:04.3]} 20... Bh6 {[%clk 0:01:03.9]} 21.
Qc3 {[%clk 0:02:02.2]} 21... e3 {[%clk 0:00:52]} 22. Nxf5 {[%clk 0:02:02.1]}
22... gxf5 {[%clk 0:00:52.1]} 23. d5 {[%clk 0:01:49.3]} 23... Rg8 {[%clk
0:00:46.7]} 24. Kh1 {[%clk 0:01:41]} 24... Rxg2 {[%clk 0:00:37.1]} 25. Kxg2
{[%clk 0:01:34.8]} 25... Rg8+ {[%clk 0:00:17.4]} 26. Kf3 {[%clk 0:01:34.8]}
26... Qe4+ {[%clk 0:00:09]} 27. Ke2 {[%clk 0:01:35]} 27... exf2+ {[%clk
0:00:09.2]} 28. Kd1 {[%clk 0:01:35.4]} 28... Rd8 {[%clk 0:00:05]} 29. Qd4 {[%clk
0:00:43.1]} 29... Rxd5 {[%clk 0:00:05.9]} 30. Qxd5 {[%clk 0:00:43.8]} 30...
Qxd5+ {[%clk 0:00:06.4]} 31. Ke2 {[%clk 0:00:44.4]} 31... Qe4+ {[%clk
0:00:03.6]} 32. Kxf2 {[%clk 0:00:44.6]} 32... Be3+ {[%clk 0:00:03.9]} 33. Kg3
{[%clk 0:00:44.9]} 33... f4+ {[%clk 0:00:03.9]} 34. Kh2 {[%clk 0:00:44.8]} 34...
h4 {[%clk 0:00:03.5]} 35. Bf6 {[%clk 0:00:38.1]} 35... Qc2+ {[%clk 0:00:03.9]}
36. Kh1 {[%clk 0:00:38.6]} 36... Bf2 {[%clk 0:00:03.6]} 37. Rac1 {[%clk
0:00:38.3]} 37... Qe4+ {[%clk 0:00:03.6]} 38. Kh2 {[%clk 0:00:38.3]} 38... Bg3+
{[%clk 0:00:04]} 39. Kg1 {[%clk 0:00:39]} 39... f3 {[%clk 0:00:04.3]} 40. Rc3
{[%clk 0:00:31]} 40... f2+ {[%clk 0:00:04.6]} 41. Rxf2 {[%clk 0:00:31.7]} 41...
Bxf2+ {[%clk 0:00:05.1]} 42. Kxf2 {[%clk 0:00:32.6]} 42... Qf5+ {[%clk 0:00:05]}
43. Rf3 {[%clk 0:00:33.5]} 43... Qc5+ {[%clk 0:00:05.2]} 44. Kg2 {[%clk
0:00:33.5]} 44... Qc2+ {[%clk 0:00:05.5]} 45. Rf2 {[%clk 0:00:34.2]} 45... Qc6+
{[%clk 0:00:05.9]} 46. Kh2 {[%clk 0:00:34.1]} 46... Kg6 {[%clk 0:00:05.5]} 47.
Bxh4 {[%clk 0:00:34.4]} 47... Qd6+ {[%clk 0:00:05.5]} 48. Bg3 {[%clk 0:00:35.1]}
48... Qd3 {[%clk 0:00:05.8]} 49. Rg2 {[%clk 0:00:36]} 49... Kh5 {[%clk
0:00:05.6]} 50. Bf4 {[%clk 0:00:35.2]} 50... f5 {[%clk 0:00:05.9]} 51. Rg5+
{[%clk 0:00:35.4]} 51... Kh4 {[%clk 0:00:06.4]} 52. Rg2 {[%clk 0:00:33.8]} 52...
Qe4 {[%clk 0:00:06.3]} 53. Rf2 {[%clk 0:00:32.3]} 53... Qd5 {[%clk 0:00:06]} 54.
Rg2 {[%clk 0:00:27.8]} 54... Qe4 {[%clk 0:00:05.4]} 55. Rf2 {[%clk 0:00:28.1]}
55... Kh5 {[%clk 0:00:06.1]} 56. Kg3 {[%clk 0:00:27.6]} 56... b5 {[%clk
0:00:06.5]} 57. Rd2 {[%clk 0:00:27.2]} 57... Qc6 {[%clk 0:00:06.1]} 58. Rd6
{[%clk 0:00:25.9]} 58... Qc3+ {[%clk 0:00:06.5]} 59. Kg2 {[%clk 0:00:26.3]}
59... Qc2+ {[%clk 0:00:06.5]} 60. Rd2 {[%clk 0:00:26.9]} 60... Qe4+ {[%clk
0:00:06.7]} 61. Kg3 {[%clk 0:00:27.6]} 61... Qe1+ {[%clk 0:00:06.6]} 62. Rf2
{[%clk 0:00:27.6]} 62... a5 {[%clk 0:00:07]} 63. Kg2 {[%clk 0:00:27.4]} 63... a4
{[%clk 0:00:07.1]} 64. bxa4 {[%clk 0:00:25.9]} 64... bxa4 {[%clk 0:00:07.2]} 65.
Bg3 {[%clk 0:00:26.8]} 65... a3 {[%clk 0:00:07.4]} 66. Rxf5+ {[%clk 0:00:26.8]}
66... Kg6 {[%clk 0:00:07.4]} 67. Bxe1 {[%clk 0:00:27.5]} 67... Kxf5 {[%clk
0:00:07.4]} 68. Bb4 {[%clk 0:00:28.2]} 68... Ke4 {[%clk 0:00:06]} 69. Bxa3
{[%clk 0:00:28.9]} 69... Kd3 {[%clk 0:00:06.2]} 70. Kg3 {[%clk 0:00:29.5]} 1-0